Cogmind - Beta 17 @@@ ROGUE MODE // 2026.07.04 @ 17:15:41 Player: eph7ra Result: Destroyed by G-34 Mercenary with Small Laser Performance ------------- Evolutions (0) 0 Regions Visited (2) 400 Robots Destroyed (7) 35 Value Destroyed (215) 215 Prototype IDs (0) 0 Alien Tech Used (0) 0 Bonus (0) 0 TOTAL SCORE: 650 Bonus ------- None Cogmind --------- Core Integrity 0/250 Matter 265/300 Energy 99/100 System Corruption 0% Temperature Cool (6) Movement Rolling (110) Location -10/Subcaves Parts ------- > --- POWER (1) -------- (None) > --- PROPULSION (2) --- Subdweller Monowheel > --- UTILITY (2) ------ Large Storage Unit > --- WEAPON (2) ------- (None) > --- INVENTORY (15) --- Light Treads Light Treads Aluminum Leg Wheel Compact Wheel Medium Laser Peak State ------------ > --- POWER ------------ Light Ion Engine > --- PROPULSION ------- Aluminum Leg Aluminum Leg > --- UTILITY ---------- Large Storage Unit Structural Scanner > --- WEAPON ----------- EM Shotgun Rocket Launcher > --- INVENTORY -------- Light Ion Engine Light Nuclear Core Light Treads Light Treads Aluminum Leg Wheel Compact Wheel EM Shotgun Medium Laser Medium Laser [Rating: 10] Favorites ----------- Power Light Ion Engine Engine Light Ion Engine Power Core Light Nuclear Core Propulsion Aluminum Leg Leg Aluminum Leg Wheel Subdweller Monowheel Utility Large Storage Unit Device Structural Scanner Storage Large Storage Unit Weapon Medium Laser Energy Gun Medium Laser Launcher Rocket Launcher Build | -11 -10 -10 ------- Run | Yrd Mat Sub Slots Evolved . | . . . Power . | . . . Propulsion . | . . . Utility . | . . . Weapon . | . . . Parts Attached 14 | 6 3 5 Power 3 | 1 . 2 Engine 2 | 1 . 1 Core 1 | . . 1 Reactor . | . . . Propulsion 3 | 2 . 1 Treads . | . . . Leg 2 | 2 . . Wheel 1 | . . 1 Hover . | . . . Flight . | . . . Utility 3 | 1 2 . Device 1 | . 1 . Storage 2 | 1 1 . Processor . | . . . Hackware . | . . . Protection . | . . . Artifact . | . . . Weapon 5 | 2 1 2 Energy Gun 4 | 2 1 1 Energy Cannon . | . . . Ballistic Gun . | . . . Ballistic Cannon . | . . . Launcher 1 | . . 1 Special Weapon . | . . . Impact Weapon . | . . . Slashing Weapon . | . . . Piercing Weapon . | . . . Special Melee Weapon . | . . . Unidentified Prototypes . | . . . Parts Lost 10 | . . 10 Power 3 | . . 3 Propulsion 2 | . . 2 Utility 1 | . . 1 Weapon 4 | . . 4 Highest Loss Streak 9 | . . 9 To Critical Strikes . | . . . Average Backups 8 | 3 8 9 Power 1 | . 1 1 Propulsion 4 | 2 4 5 Utility . | . . . Weapon 2 | . 2 2 Tool/Special . | . . . Unused Backups 6 | . 1 5 Power . | . . . Propulsion 5 | . . 5 Utility . | . . . Weapon 1 | . 1 . Tool/Special . | . . . Average Slot Usage (%) 93 | . 97 90 Engine 12 | . 14 11 Leg 25 | . 28 23 Device 12 | . 11 12 Storage 14 | . 14 14 Energy Gun 26 | . 28 25 Peak Build Rating 10 | 6 9 10 Average Rating 7 | 3 8 8 On Entrance 5 | . 6 9 Avg Prop Armor Cover (%) . | . . . Naked Turns . | . . . Heaviest Build 29 | 12 29 29 Greatest Support 20 | 20 20 20 Greatest Overweight (x) 7 | 2 1 7 Average Overweight (x) . | . . 1 Largest Inventory Capacity 15 | 8 15 15 Average Capacity 13 | 7 12 15 Most Carried 10 | 7 10 10 Average Carried 8 | 4 8 9 Final Capacity 15 | 8 15 15 Final Carried 10 | 6 10 6 Class Distribution -------------------- 100% | Mutant Dominant Class ---------------- Mutant | -10/Materials Mutant | -10/Subcaves Resources | -11 -10 -10 ----------- Run | Yrd Mat Sub Matter Collected 309 | 224 66 19 Remotely . | . . . Salvage Created 273 | 11 261 1 Parts 14 | 4 9 1 Haulers Intercepted . | . . . Recyclers Shooed 1 | . 1 . Parts Field Recycled . | . . . Retrieved Matter . | . . . Parts Self-Destructed . | . . . Prevented . | . . . Parts Restored . | . . . Kills | -11 -10 -10 ------- Run | Yrd Mat Sub Combat Hostiles Destroyed 5 | . 4 1 Guns 5 | . 4 1 Classes Destroyed 4 | 1 2 1 Tunneler 1 | 1 . . Recycler 1 | . 1 . Grunt 4 | . 4 . Subdweller 1 | . . 1 Best Kill Streak 3 | 1 3 1 Combat Bots Only 2 | . 2 1 Max Kills in Single Turn 1 | 1 1 1 Gunslinging . | . . . Exploded . | . . . Melee . | . . . Uniques/NPCs Destroyed . | . . . Combat | -11 -10 -10 -------- Run | Yrd Mat Sub Hostile Shots Fired 59 | . 21 38 Missed 19 | . 7 12 Hits 40 | . 14 26 Projectile 40 | . 14 26 AOE 8 | . . 8 Critical Strikes 1 | . . 1 Damage Taken 878 | . 176 702 Core 254 | . 33 221 Absorbed by Shields . | . . . Core Remaining (%) 100 | 100 . . Volleys Fired 26 | . 13 13 Largest 2 | . 2 2 Hottest 95 | . 95 78 Shots Fired 41 | . 26 15 Gun 37 | . 26 11 Cannon . | . . . Launcher 4 | . . 4 Special . | . . . Kinetic . | . . . Thermal 15 | . 13 2 Explosive 4 | . . 4 Electromagnetic 22 | . 13 9 Robot Hit Streak 17 | . 5 17 Robot Miss Streak 6 | . 6 1 Penetration Max . | . . . Secondary Targets . | . . . Shots Hit Robots 33 | . 18 15 Core Hits 19 | 1 12 6 Critical Kills . | . . . Critical Parts Destroyed . | . . . Critical Strikes 1 | . . 1 Burn 1 | . . 1 Melee Attacks . | . . . Impact . | . . . Slashing . | . . . Piercing . | . . . Sneak Attacks . | . . . Combat Hostiles . | . . . Follow-up Attacks . | . . . Damage Inflicted 778 | 10 270 498 Guns 407 | . 270 137 Cannons . | . . . Explosions 361 | . . 361 Melee . | . . . Ramming 10 | 10 . . Kinetic . | . . . Thermal 113 | . 88 25 Explosive 361 | . . 361 Electromagnetic 294 | . 182 112 Impact . | . . . Slashing . | . . . Piercing . | . . . Highest Corruption . | . . . Average Corruption . | . . . Corruption Purged . | . . . Corruption Blocked . | . . . Overload Shots . | . . . Overflow Damage 25 | . . 25 Projectiles . | . . . Explosions 25 | . . 25 Melee . | . . . Knockbacks . | . . . Impact . | . . . Kinetic . | . . . Secondary . | . . . Self-Inflicted Damage . | . . . Shots . | . . . Rammed . | . . . Targets Rammed 1 | 1 . . Kicked 1 | 1 . . Crushed . | . . . Highest Temperature 312 | . 312 . Average Temperature 139 | . 139 . Received Heat Transfer 204 | . 105 99 Effects 4 | . 4 . Energy Bleed 1 | . 1 . Interference 3 | . 3 . Siege Activations . | . . . Martial Activations . | . . . Shielding Activations . | . . . Robots Disrupted 1 | . . 1 Combat Hostiles 1 | . . 1 Robots Corrupted . | . . . Combat Hostiles . | . . . Parts Fried 2 | . 2 . Impact Corruptions . | . . . Robots Melted . | . . . Combat Hostiles . | . . . Parts Melted 1 | . 1 . Heat Transferred 407 | . 259 148 Parts Sabotaged . | . . . Parts Stolen . | . . . Parts Stripped . | . . . Power Chain Reactions . | . . . Alert | -11 -10 -10 ------- Run | Yrd Mat Sub Maximum Alert Level . | . . . Low Security (%) 100 | 100 100 . Level 1 . | . . . Level 2 . | . . . Level 3 . | . . . Level 4 . | . . . Level 5 . | . . . High Security . | . . . Max Security . | . . . Peak Influence 66 | . 66 . Initial 3 | . 3 . Average 22 | . 26 . Influence Increases 111 | 5 106 . Destroy 0b10 Robot/C 80 | . 80 . Destroy 0b10 Robot/NC 10 | 5 5 . Destroy Leader 20 | . 20 . Destroy Structure 1 | . 1 . Influence Decreases 111 | . 85 26 Entered New Map 16 | . 2 14 Time Decay 95 | . 83 12 Squads Dispatched . | . . . Investigation . | . . . Extermination . | . . . Reinforcement . | . . . Assault . | . . . Garrison . | . . . Intercept . | . . . Searches Triggered . | . . . Construction Impeded . | . . . Haulers Reinforced . | . . . Active Scanning Responses . | . . . Cargo Convoy Interrupts . | . . . Stealth | -11 -10 -10 --------- Run | Yrd Mat Sub Distress Signals 1 | . 1 . Communications Jammed . | . . . Distress Signals . | . . . Times Spotted 10 | . 5 5 Peak Tracking Total 3 | . 3 3 Tactical Retreats . | . . . Traps | -11 -10 -10 ------- Run | Yrd Mat Sub Traps Triggered . | . . . Indirectly . | . . . Trap Hack Attempts . | . . . Triggered . | . . . Disarmed . | . . . Reprogrammed . | . . . Reused . | . . . Traps Extracted . | . . . Installed . | . . . Triggered . | . . . Machines | -11 -10 -10 ---------- Run | Yrd Mat Sub Machines Disabled . | . . . Max in Single Turn . | . . . Machines Repaired . | . . . Machines Dismantled . | . . . Machines Sabotaged . | . . . Overloaded Fab Kills . | . . . Hacking | -11 -10 -10 --------- Run | Yrd Mat Sub Machines Accessed 2 | . . 2 Terminals . | . . . Fabricators . | . . . Repair Stations . | . . . Recycling Units . | . . . Scanalyzers . | . . . Garrison Access . | . . . Total Hacks 3 | . . 3 Successful 3 | . . 3 Failed . | . . . Catastrophic . | . . . Database Lockouts . | . . . Manual . | . . . Terminals . | . . . Fabricators . | . . . Repair Stations . | . . . Recycling Units . | . . . Scanalyzers . | . . . Garrison Access . | . . . Terminal Hacks 3 | . . 3 Record 1 | . . 1 Open Door 1 | . . 1 Release Object 1 | . . 1 Fabricator Hacks . | . . . Repair Station Hacks . | . . . Recycling Unit Hacks . | . . . Scanalyzer . | . . . Garrison Access Hacks . | . . . Unauthorized Hacks . | . . . Terminals . | . . . Fabricators . | . . . Repair Stations . | . . . Recycling Units . | . . . Scanalyzers . | . . . Garrison Access . | . . . Data Cores Recovered . | . . . Used . | . . . Hacking Detections . | . . . Full Trace Events . | . . . Feedback Events . | . . . Feedback Blocked . | . . . Robot Schematics Acquired . | . . . Robots Built . | . . . Authchips . | . . . Time . | . . . Total Robot Build Rating . | . . . Part Schematics Acquired . | . . . Parts Built . | . . . Authchips . | . . . Time . | . . . Total Part Build Rating . | . . . Part Studies Acquired . | . . . Parts Repaired . | . . . Time . | . . . Parts Recycled . | . . . Recycled Matter . | . . . Retrieved Matter . | . . . Retrieved Components . | . . . Parts Scanalyzed . | . . . Part Schematics Acquired . | . . . Parts Damaged . | . . . Bothacking | -11 -10 -10 ------------ Run | Yrd Mat Sub Used RIF Installer . | . . . Robots Hacked . | . . . Non-combat . | . . . Combat . | . . . Robot Hacks Applied . | . . . Relay Couplers Released . | . . . Fabnet Peak Effective % . | . . . Robots Rewired . | . . . Allies Hacked . | . . . Hacks Repelled . | . . . Allies | -11 -10 -10 -------- Run | Yrd Mat Sub Total Allies . | . . . Largest Group . | . . . Highest-Rated Group . | . . . Highest-Rated Ally . | . . . Total Orders . | . . . Ally Attacks . | . . . Total Damage . | . . . Kills . | . . . Allies Corrupted . | . . . Allies Melted . | . . . Intel | -11 -10 -10 ------- Run | Yrd Mat Sub Active Infowar (turns) 571 | . 130 441 Structural 571 | . 130 441 Robot Analysis Total . | . . . Derelict Logs Recovered . | . . . Drone Launches . | . . . Drone Recoveries . | . . . Exploration | -11 -10 -10 ------------- Run | Yrd Mat Sub Turns Passed 805 | 53 254 498 Spaces Moved 400 | 36 124 240 Core 18 | 13 . 5 Treads . | . . . Legs 358 | 23 124 211 Wheels 24 | . . 24 Hover . | . . . Flight . | . . . Fastest Speed 50 | 50 120 110 Average Speed 170 | 103 156 187 Slowest Speed 400 | 150 190 400 Overloaded Moves . | . . . Propulsion Burnouts . | . . . Robots Hopped . | . . . Potential Cave-ins . | . . . Cave-ins Triggered . | . . . Exploration Rate (%) 11 | 3 18 13 Regions Visited 2 Branch Regions 1 Pre-discovered Areas . | . . . Known Exits Taken . | . . . Unknown Exits Taken 2 | 1 1 . Scrap Searched . | . . . Spaces Dug . | . . . Terrain Destroyed 31 | . . 31 Melee . | . . . Projectile . | . . . AOE 31 | . . 31 Terrain Rammed . | . . . Walls Destroyed . | . . . Machines Disabled . | . . . Actions | -11 -10 -10 --------- Run | Yrd Mat Sub Total 481 | 49 159 273 Wait 26 | . 13 13 Move 399 | 36 123 240 Hop . | . . . Pick Up 12 | 7 5 . Fast Attach 7 | 5 1 1 Attach 5 | 1 . 4 Detach . | . . . Swap 3 | . 2 1 Drop 2 | . 2 . Fire 26 | . 13 13 Melee . | . . . Ram . | . . . Kick . | . . . Crush . | . . . Escape Stasis . | . . . Rewire . | . . . Trap . | . . . Miscellaneous 1 | . . 1 Route ------- -11/Scrapyard -10/Materials -10/Subcaves History --------- Turn | Location | Event 23 | -11/Scrapyard | Discovered new exit (range 15) 54 | -11/Scrapyard | Entered Materials 87 | -10/Materials | Discovered new exit (range 3) 305 | -10/Materials | Build established: Mutant 308 | -10/Materials | Entered Subcaves 309 | -10/Subcaves | Approached by a straggling Scientist 434 | -10/Subcaves | Released subatomizers from SUBCON Basin 715 | -10/Subcaves | Ambushed by Subdweller buried in earth 726 | -10/Subcaves | Ambushed by Subdweller buried in earth 750 | -10/Subcaves | Core integrity fell below 50% 768 | -10/Subcaves | Core integrity fell below 20% 784 | -10/Subcaves | Lost 9 parts (3p2n1u3w) 806 | -10/Subcaves | Destroyed by G-34 Mercenary with Small Laser Last Messages --------------- PU-RQQ(R) affixes Scrap Shield Fragment to Scrap Shield. Lgt. Nuclear Core destroyed. Aluminum Leg destroyed. G-47 Trooper destroyed. Structural Scanner destroyed. Subatomizers dissect the Sub. Laser. EM Shotgun destroyed. Lgt. Ion Engine destroyed. PU-RQQ(R) destroyed. G-34 Mercenary suffers critical hit (Burn). The unstable cave ceiling collapses. Subatomizers dissect the Sub. Monowheel. The unstable cave ceiling collapses. Subatomizers dissect the Sub. Monowheel. Acquired Sub. Monowheel. Subatomizers dissect the Sub. Laser, destroying it. Acquired 19 matter. Med. Laser destroyed. Map ----- +----------------------------------------------------+ | ??????????????????????????????????????# #????????? | | ?????????????????????????????????????### ????????? | | ????????????????? "#?????????????????## #????????? | | ??????????????????""###???????????#### ##????????? | | ???????????????????"" #?????????##### ######????? | | ???????????????????? #????????### # ######????? | | ????????????????????? ########## "" ###???? | | ??????????????????????# ######### ####??? | | ????????????????????#### ### ## ###?? | | ????????????????????#### # ### | | ???????????????????###"" # ## ### | | ???????????????### # "" " | | ?????????????? "" %%& | | ?????????????? "" & | | ???????????????## ## ### g# % | | ???????????????????##?## # # "# | | ??????????????????????## # ## " # | | ??????????????????????## #### ## "## | | ??????????????????????### ##?#########" ## | | ????????????????????????# #?########## | | ???????????????????????## =#?????##### | | ???????????????????????# #????#### ### | | ???????????????????????## #???#### ##### | | ???????????????????????## #???### ####### | | ???????????????????????# #???## ######## | | ???????????????????????##@ #??### ###### | | ????????????????????????# ##??### ##### ### | | ????????????????????????# ???## #### #### | | ???????????????????????? #???## #### #### | | ???????????????????????? #???## ####### ##### | | ???????????????????????? #???## ############?# | | ????????????????????????###??### ##???######??? | | ????????????????????????######## ###??????????? | | ????????????????????????####### ######???????? | | ???????????????????????### ######??????? | | ??????????????????????#### ###??????? | | ??????????????????????### ## ##??????? | | ??????????????????????## ####### ###??????? | | ??????????????????????### ####### #####??????? | | ??????????????????????#########??#########???????? | | ???????????????????????#######???#######???????### | | ????????????????????????????????????############## | | ????????????????????????????????????############# | | ????????????????????????????????????##"""""#### ## | | ????????????????????????????????????##"X "### # | | ????????????????????????????????????##""& "#" # # | | ????????????????????????????????????##"" "#" # | | ????????????????????????????????????##"" ## | | ????????????????????????????????????##"" "#"X### | | ????????????????????????????????????########### | +----------------------------------------------------+ Best States ------------- Heat Dissipation 25 Energy Generation 14 Energy Capacity 160 Matter Stores 300 Matter Capacity 300 Sight Range 16 Terrain Scan Density 10 Evasion (%) 55 Item Schematics ----------------- None Robot Schematics ------------------ None Fabricated ------------ Nothing Repaired ---------- Nothing Studied --------- None Alien Tech Used ----------------- None Achievements -------------- None Challenges ------------ None Game ------ Seed ArcImprinterWall Manual? 0 Play Time 00:08:21 Cumulative 24.6 hours Start 2026.07.04 @ 17:03:15 End 2026.07.04 @ 17:15:41 Sessions 1 Manual Loads 0 Difficulty Rogue Special Mode None Game No. 33 Rogue 28 Adventurer 1 Explorer 4 Win Type - Total 0 Types 0/0/0/0/0/0/0/0/0/0 Lore% 10 Gallery% 19 Achievement% 18 Wizard Run 0 Options --------- Layout 1 ASCII 0 Keyboard 0 Movement Arrows Keybinds 0 Fullscreen 1 Font 24/Smallcaps Map View 50x35 Zoom Use 0% Tactical HUD 0 Map Filters NONE Filters NONE Steam 1 RUN: c3915c96-a079-4e91-842b-ef8211b86157